bitfinex-derivatives/quotes_ETHF0:USTF0_20230101
["timestamp","ask_amount","ask_price","bid_price","bid_amount"]
[1672539037744,3.76164113,1194.4,1194.3,5.25260881]
[1672539038051,8.13525602,1194.4,1194.3,5.25260881]
[1672539038472,3.76164113,1194.4,1194.3,3.99650144]
[1672539040898,3.76164113,1194.4,1194.3,5.25260881]
[1672539042372,11.63525602,1194.5,1194.3,5.25260881]
[1672539042890,7.26164113,1194.5,1194.3,5.25260881]
[1672539044998,7.26164113,1194.5,1194.3,3.99650144]
[1672539045209,11.63525602,1194.5,1194.3,3.99650144]
[1672539045421,3.76164113,1194.4,1194.3,3.99650144]
[1672539053192,11.63525602,1194.5,1194.3,5.25260881]
[1672539053619,11.63525602,1194.5,1194.3,3.99650144]
[1672539053829,3.76164113,1194.4,1194.3,3.99650144]
[1672539061923,11.63525602,1194.5,1194.3,5.25260881]
[1672539062341,3.76164113,1194.4,1194.3,5.25260881]
[1672539062869,3.76164113,1194.4,1194.2,3.13942081]
[1672539063075,7.87361489,1194.5,1194.1,1.25610737]
[1672539063076,3.76164113,1194.3,1194.1,1.25610737]
[1672539063288,3.76164113,1194.3,1194.2,4.0]
[1672539063921,7.76164113,1194.3,1194.2,4.0]
[1672539069385,4.0,1194.3,1194.2,4.0]
[1672539070023,7.76164113,1194.3,1194.2,4.0]
[1672539071278,4.0,1194.3,1194.2,4.0]
[1672539072014,7.76164113,1194.3,1194.2,4.0]
[1672539097988,12.13525602,1194.3,1194.2,4.0]
[1672539098193,7.76164113,1194.3,1194.2,4.0]
[1672539099455,7.76164113,1194.3,1194.2,5.25610737]
[1672539099772,7.76164113,1194.3,1194.2,4.0]
[1672539099971,7.76164113,1194.3,1194.2,5.25610737]
[1672539101760,12.13525602,1194.3,1194.2,5.25610737]
[1672539102296,7.76164113,1194.3,1194.2,5.25610737]
[1672539108492,12.13525602,1194.3,1194.2,5.25610737]
[1672539108804,7.76164113,1194.3,1194.2,5.25610737]
[1672539113525,3.76164113,1194.3,1194.2,5.25610737]
[1672539118993,8.13525602,1194.4,1194.2,5.25610737]
[1672539120049,3.76164113,1194.3,1194.2,5.25610737]
[1672539124996,7.76164113,1194.3,1194.2,5.25610737]
[1672539137187,12.13525602,1194.3,1194.2,5.25610737]
[1672539138655,7.76164113,1194.3,1194.2,5.25610737]
[1672539144858,12.13525602,1194.3,1194.2,5.25610737]
[1672539145390,7.76164113,1194.3,1194.2,5.25610737]
[1672539149064,3.76164113,1194.3,1194.2,5.25610737]
[1672539149591,3.76164113,1194.3,1194.2,7.13995411]
[1672539149800,4.37361489,1194.4,1194.2,7.13995411]
[1672539149801,8.13525602,1194.4,1194.2,7.13995411]
[1672539150017,4.0,1194.3,1194.2,7.13995411]
[1672539150544,7.76164113,1194.3,1194.2,7.13995411]
[1672539151278,4.0,1194.3,1194.2,7.13995411]
[1672539151805,8.13525602,1194.4,1194.2,7.13995411]
[1672539153165,3.5,1194.3,1194.2,7.13995411]
[1672539153802,4.0,1194.3,1194.2,7.13995411]
[1672539154011,7.76164113,1194.3,1194.2,7.13995411]
[1672539154222,7.76164113,1194.3,1194.2,5.25610737]
[1672539156742,7.76164113,1194.3,1194.2,4.0]
[1672539156952,7.76164113,1194.3,1194.2,5.25610737]
[1672539158534,7.26164113,1194.3,1194.2,5.25610737]
[1672539158843,3.76164113,1194.3,1194.2,7.13995411]
[1672539159894,3.76164113,1194.3,1194.2,5.25610737]
[1672539164212,6.76164113,1194.3,1194.2,5.25610737]
[1672539165050,3.76164113,1194.3,1194.2,5.25610737]
[1672539165260,3.76164113,1194.3,1194.2,7.13995411]
[1672539165685,3.76164113,1194.3,1194.2,5.25610737]
[1672539166415,3.76164113,1194.3,1194.2,7.13995411]
[1672539167784,3.76164113,1194.3,1194.2,5.25610737]
[1672539168834,7.76164113,1194.3,1194.2,5.25610737]
[1672539170507,7.76164113,1194.3,1194.2,4.0]
[1672539170726,12.13525602,1194.3,1194.2,4.0]
[1672539170930,7.76164113,1194.3,1194.2,4.0]
[1672539172942,12.13525602,1194.3,1194.2,4.0]
[1672539173359,7.76164113,1194.3,1194.2,4.0]
[1672539173567,7.76164113,1194.3,1194.2,5.25610737]
[1672539174201,3.76164113,1194.3,1194.2,5.25610737]
[1672539177767,8.13525602,1194.4,1194.2,7.13995411]
[1672539177978,3.0,1194.3,1194.2,7.13995411]
[1672539180185,3.76164113,1194.4,1194.2,7.13995411]
[1672539180396,4.0,1194.3,1194.2,7.13995411]
[1672539180818,8.13525602,1194.4,1194.2,7.13995411]
[1672539181028,3.0,1194.3,1194.2,7.13995411]
[1672539182603,4.0,1194.3,1194.2,7.13995411]
[1672539189867,7.76164113,1194.3,1194.2,7.13995411]
[1672539190071,4.0,1194.3,1194.2,7.13995411]
[1672539193230,8.13525602,1194.4,1194.2,7.13995411]
[1672539193649,3.5,1194.3,1194.2,7.13995411]
[1672539197125,4.0,1194.3,1194.2,7.13995411]
[1672539199862,8.13525602,1194.4,1194.2,7.13995411]
[1672539200061,3.0,1194.3,1194.2,7.13995411]
[1672539201957,4.0,1194.3,1194.2,7.13995411]
[1672539206064,3.76164113,1194.4,1194.2,7.13995411]
[1672539206273,4.0,1194.3,1194.2,7.13995411]
[1672539206486,7.76164113,1194.3,1194.2,5.25610737]
[1672539206805,4.0,1194.3,1194.2,7.13995411]
[1672539211423,7.76164113,1194.3,1194.2,7.13995411]
[1672539215837,7.76164113,1194.3,1194.2,5.88384674]
[1672539216048,7.76164113,1194.3,1194.2,7.14029597]
[1672539218994,7.76164113,1194.3,1194.2,3.14029597]
[1672539219211,7.76164113,1194.3,1194.1,6.63686459]
[1672539219416,3.76124082,1194.2,1194.1,5.25301785]
[1672539220367,12.13485571,1194.3,1194.1,7.13686459]
[1672539220581,12.13485571,1194.3,1194.1,5.25301785]
[1672539220788,12.13485571,1194.3,1194.1,7.13686459]
[1672539221105,7.76124082,1194.3,1194.1,7.13686459]
[1672539222354,7.76124082,1194.3,1194.1,5.88384674]
[1672539222676,3.1327414,1194.2,1194.1,5.88384674]
[1672539222884,7.76124082,1194.3,1194.1,5.88384674]
[1672539225404,3.13268193,1194.2,1194.1,5.88384674]
[1672539227403,7.76124082,1194.3,1194.1,5.88384674]
[1672539232874,7.76124082,1194.3,1194.1,4.0]
[1672539233294,7.76124082,1194.3,1194.1,5.88384674]
[1672539233502,7.76124082,1194.3,1194.1,4.0]
[1672539234021,7.76124082,1194.3,1194.1,5.88384674]
[1672539235812,3.13185637,1194.2,1194.1,5.88384674]
[1672539236231,2.50568853,1194.2,1194.1,7.9955904]
[1672539237282,5.6375449,1194.2,1194.1,7.9955904]
[1672539237494,5.6375449,1194.2,1194.1,6.51102083]
[1672539239389,2.50568853,1194.2,1194.1,7.99559475]
[1672539240320,2.50568853,1194.2,1194.1,7.99559889]
[1672539240534,2.50568853,1194.2,1194.1,7.99560669]
[1672539240754,5.6375449,1194.2,1194.1,6.51102083]
[1672539241063,5.6375449,1194.2,1194.1,8.39397468]
[1672539241598,5.6375449,1194.2,1194.1,6.51102083]
[1672539241905,5.6375449,1194.2,1194.1,14.87602083]
[1672539242117,2.50568853,1194.3,1194.1,19.98720953]
[1672539242431,2.43869808,1194.3,1194.2,15.49753709]
[1672539242646,3.13185637,1194.5,1194.2,12.98720953]
[1672539242857,2.95445637,1194.6,1194.4,23.01281298]
[1672539243070,8.13485571,1194.9,1194.6,8.365]
[1672539243377,3.76124082,1194.9,1194.6,12.75682322]
[1672539243586,8.13485571,1194.9,1194.6,12.75682322]
[1672539243795,4.0,1194.9,1194.7,4.0]
[1672539244013,4.0,1194.9,1194.8,3.5]
[1672539244959,4.0,1194.9,1194.8,14.40557406]
[1672539245171,3.5,1195.0,1194.8,14.40557406]
[1672539245373,4.0,1195.0,1194.8,14.40557406]
[1672539251055,3.5,1195.1,1194.8,22.77057406]
[1672539251263,5.55501489,1195.3,1194.8,22.77057406]
[1672539251264,3.76124082,1195.3,1194.8,22.77057406]
[1672539251472,8.13485571,1195.4,1195.0,8.365]
[1672539251679,6.83007253,1195.6,1195.0,8.365]
[1672539251680,1.1814,1195.6,1195.0,8.365]
[1672539251892,4.0,1195.5,1195.2,8.365]
[1672539252210,4.0,1195.5,1195.2,8.53387401]
[1672539252630,4.0,1195.5,1195.3,3.5]
[1672539252940,4.0,1195.5,1195.3,11.865]
[1672539255577,4.0,1195.5,1195.1,12.365]
[1672539258000,4.0,1195.5,1195.1,4.0]
[1672539258929,1.1814,1195.4,1194.9,13.652]
[1672539259454,4.1814,1195.4,1194.9,13.652]
[1672539259874,3.5,1195.3,1195.0,4.0]
[1672539262930,3.5,1195.3,1194.9,13.652]
[1672539263130,3.5,1195.3,1194.7,22.017]
[1672539263341,1.1814,1195.2,1194.7,22.017]
[1672539263760,1.1814,1195.2,1194.8,4.0]
[1672539264498,9.5464,1195.2,1194.8,4.0]
[1672539267226,4.0,1195.1,1194.8,4.0]
[1672539277636,7.76124082,1195.1,1194.8,4.0]
[1672539284153,4.0,1195.1,1194.8,4.0]
[1672539284676,7.76124082,1195.1,1194.8,4.0]
[1672539285412,4.0,1195.1,1194.8,4.0]
[1672539289611,4.0,1195.1,1194.8,23.26387125]
[1672539292241,7.76124082,1195.1,1194.8,23.26387125]
[1672539292451,4.0,1195.1,1194.8,23.26387125]
[1672539293395,7.76124082,1195.1,1194.8,23.26387125]
[1672539297700,7.76124082,1195.1,1194.8,25.1460755]
[1672539297917,12.13485571,1195.1,1194.8,25.1460755]
[1672539298225,3.76124082,1195.1,1194.9,10.24720425]
[1672539298438,3.76124082,1195.2,1194.9,10.24720425]
[1672539298651,3.76124082,1195.2,1195.0,11.865]
[1672539298865,8.13485571,1195.3,1195.0,13.74720425]
[1672539299173,3.76124082,1195.3,1195.0,24.68342405]
[1672539299385,3.76124082,1195.3,1195.1,12.365]
[1672539299595,8.13485571,1195.4,1195.1,14.24720425]
[1672539299802,3.76124082,1195.4,1195.1,12.365]
[1672539300749,12.13485571,1195.4,1195.1,12.365]
[1672539300962,3.76124082,1195.3,1195.1,12.365]
[1672539301165,12.13485571,1195.4,1195.1,12.365]
[1672539301809,8.13485571,1195.4,1195.1,12.365]
[1672539303070,3.76124082,1195.4,1195.1,12.365]
[1672539303484,7.76124082,1195.4,1195.1,12.365]
[1672539312091,4.0,1195.4,1195.1,12.365]
[1672539313469,8.13485571,1195.5,1195.1,12.365]
[1672539313678,3.76124082,1195.5,1195.1,12.365]
[1672539313887,7.76124082,1195.5,1195.1,12.365]
[1672539314313,3.5,1195.4,1195.1,12.365]
[1672539315049,3.5,1195.4,1195.1,12.35765588]
[1672539315674,7.26124082,1195.4,1195.1,12.35765588]
[1672539315993,3.5,1195.4,1195.1,12.35765588]
[1672539316201,7.26124082,1195.4,1195.1,12.35765588]
[1672539317669,7.76124082,1195.5,1195.1,12.35765588]
[1672539319771,3.5,1195.4,1195.1,12.35765588]
[1672539321033,7.76124082,1195.5,1195.1,12.35765588]
[1672539321667,3.5,1195.4,1195.1,12.35765588]
[1672539323970,7.26124082,1195.4,1195.1,12.35765588]
[1672539325021,7.26124082,1195.4,1195.1,3.99265588]
[1672539325337,3.76124082,1195.3,1195.1,3.99265588]
[1672539332485,8.13485571,1195.3,1195.1,3.99265588]
[1672539333539,3.76124082,1195.3,1195.1,3.99265588]
[1672539333747,8.13485571,1195.3,1195.1,3.99265588]
[1672539333960,3.76124082,1195.2,1195.1,3.99265588]
[1672539335424,3.76124082,1195.3,1195.1,3.99265588]
[1672539338997,3.76124082,1195.3,1195.1,5.87486013]
[1672539339212,3.76124082,1195.3,1195.1,5.24677964]
[1672539340791,3.76124082,1195.3,1195.1,7.12898389]
[1672539340998,3.76124082,1195.3,1195.1,5.24677964]
[1672539341418,3.76124082,1195.3,1195.1,7.12898389]
[1672539342784,3.76124082,1195.3,1195.1,5.24677964]
[1672539345830,8.13485571,1195.3,1195.1,5.24677964]
[1672539346048,8.13485571,1195.3,1195.1,3.99265588]
[1672539346256,3.76124082,1195.2,1195.1,3.99265588]
[1672539346884,4.37361489,1195.3,1195.1,3.99265588]
[1672539346885,8.13485571,1195.3,1195.1,5.24677964]
[1672539347300,8.13485571,1195.3,1195.1,3.99265588]
[1672539347511,3.76124082,1195.2,1195.1,3.99265588]
[1672539353188,8.13485571,1195.3,1195.1,5.24677964]
[1672539353399,8.13485571,1195.3,1195.1,3.99265588]
[1672539353605,8.13485571,1195.3,1195.1,5.24677964]
[1672539353820,3.76124082,1195.3,1195.1,5.24677964]
[1672539355299,8.13485571,1195.3,1195.1,5.24677964]
[1672539355606,3.76124082,1195.3,1195.1,5.24677964]
[1672539355926,8.13485571,1195.3,1195.1,5.24677964]
[1672539356238,3.76124082,1195.3,1195.1,5.24677964]
[1672539359186,8.13485571,1195.3,1195.1,5.24677964]
[1672539359397,3.76124082,1195.3,1195.1,5.24677964]
[1672539359816,3.76124082,1195.3,1195.1,13.61177964]
[1672539360123,3.76124082,1195.3,1195.1,15.49398389]
[1672539369695,8.13485571,1195.3,1195.1,15.49398389]
[1672539370010,3.76124082,1195.3,1195.1,15.49398389]
[1672539370325,8.13485571,1195.3,1195.1,15.49398389]
[1672539370538,3.76124082,1195.3,1195.1,15.49398389]
[1672539371061,8.13485571,1195.3,1195.1,15.49398389]
[1672539371801,3.76124082,1195.3,1195.1,15.49398389]
[1672539373269,8.13485571,1195.3,1195.1,15.49398389]
[1672539373476,3.76124082,1195.3,1195.1,15.49398389]
[1672539373691,3.76124082,1195.3,1195.2,1.25412376]
[1672539374104,3.76124082,1195.3,1195.2,1.79122612]
[1672539375694,3.76124082,1195.3,1195.2,0.53710236]
[1672539376116,3.76124082,1195.3,1195.2,1.79122612]
[1672539376429,3.76124082,1195.3,1195.2,0.53710236]
[1672539376744,3.76124082,1195.3,1195.2,1.79122612]
[1672539377370,3.76124082,1195.3,1195.2,0.53710236]
[1672539377586,3.76124082,1195.3,1195.2,1.79122612]
[1672539378530,3.76124082,1195.3,1195.2,0.53710236]
[1672539379895,3.76124082,1195.3,1195.2,1.79122612]
[1672539381159,3.76124082,1195.3,1195.2,3.67343037]
[1672539381474,11.63485571,1195.4,1195.2,1.79122612]
[1672539381683,11.63485571,1195.4,1195.3,3.5]
[1672539384942,7.26124082,1195.4,1195.3,3.5]
[1672539385363,3.76124082,1195.4,1195.3,3.5]
[1672539385785,7.76124082,1195.5,1195.3,4.75412376]
[1672539387051,3.76124082,1195.4,1195.3,4.75412376]
[1672539387252,3.76124082,1195.4,1195.3,3.5]
[1672539388104,12.13485571,1195.5,1195.3,4.75412376]
[1672539388942,12.13485571,1195.5,1195.3,3.5]
[1672539389153,3.76124082,1195.4,1195.3,3.5]
[1672539389356,12.13485571,1195.5,1195.3,3.5]
[1672539390726,3.76124082,1195.4,1195.3,3.5]
[1672539391463,12.13485571,1195.5,1195.3,3.49520377]
[1672539391673,7.76124082,1195.5,1195.3,4.74932753]
[1672539395663,7.76124082,1195.5,1195.3,3.49520377]
[1672539399230,12.13485571,1195.5,1195.3,3.49520377]
[1672539399446,3.76124082,1195.4,1195.3,3.49520377]
[1672539401439,3.76124082,1195.4,1195.2,10.15622612]
[1672539401641,3.5,1195.3,1195.2,8.90210236]
[1672539403121,3.5,1195.3,1195.2,10.15622612]
[1672539403752,3.5,1195.3,1195.2,0.53710236]
[1672539404165,7.26124082,1195.3,1195.2,0.53710236]
[1672539410820,7.26124082,1195.3,1195.1,13.61177964]
[1672539412074,7.26124082,1195.3,1195.1,15.49398389]
[1672539412282,7.26124082,1195.3,1195.1,13.61177964]
[1672539414286,7.26124082,1195.3,1195.1,15.49398389]
[1672539418377,7.26124082,1195.3,1195.1,13.61177964]
[1672539421518,7.26124082,1195.3,1195.1,5.24677964]
[1672539422778,7.26124082,1195.3,1195.0,1.25412376]
[1672539423092,3.76124082,1195.2,1194.9,16.78832801]
[1672539423410,4.0,1195.1,1194.9,7.13632801]
[1672539424146,4.0,1195.1,1195.0,3.5]
[1672539425623,4.0,1195.1,1194.9,7.13632801]
[1672539426038,4.0,1195.1,1194.9,5.25412376]
[1672539437597,4.0,1195.1,1194.9,7.13632801]
[1672539438014,4.0,1195.1,1194.9,5.25412376]
[1672539439281,4.0,1195.1,1194.9,7.13632801]
[1672539440015,4.0,1195.1,1194.9,5.25412376]
[1672539441166,4.0,1195.1,1194.9,7.13632801]
[1672539444318,4.0,1195.1,1194.9,5.25412376]
[1672539447161,4.0,1195.1,1194.9,7.13632801]
[1672539450202,4.0,1195.1,1194.9,5.25412376]
[1672539450520,4.0,1195.1,1195.0,3.5]
[1672539450831,11.63485571,1195.3,1195.0,5.38220425]
[1672539451043,11.63485571,1195.3,1195.0,6.63632801]
[1672539451355,7.26124082,1195.3,1195.0,6.63632801]
[1672539452198,7.26124082,1195.3,1195.0,17.36368461]
[1672539452410,11.63485571,1195.3,1195.0,17.36368461]
[1672539453248,3.76124082,1195.2,1195.0,17.36368461]
[1672539453455,11.63485571,1195.3,1195.0,17.36368461]
[1672539453776,3.76124082,1195.2,1195.0,17.36368461]
[1672539454613,11.63485571,1195.3,1195.0,17.36368461]
[1672539456915,11.63485571,1195.3,1195.1,1.25412376]
[1672539457338,3.76124082,1195.2,1195.1,1.25412376]
[1672539457553,11.63485571,1195.3,1195.1,1.25412376]
[1672539459348,3.76124082,1195.2,1195.1,1.25412376]
[1672539459869,11.63485571,1195.3,1195.1,1.25412376]
[1672539460080,3.76124082,1195.2,1195.1,1.25412376]
[1672539461240,3.76124082,1195.2,1195.0,16.10956085]
[1672539461241,3.76124082,1195.2,1195.0,17.36368461]
[1672539461975,3.5,1195.1,1195.0,17.36368461]
[1672539463028,3.5,1195.1,1195.0,4.75412376]
[1672539463447,4.0,1195.1,1195.0,4.75412376]
[1672539465668,7.76124082,1195.1,1195.0,4.74838856]
[1672539466080,3.76124082,1195.1,1195.0,4.74838856]
[1672539466291,8.13485571,1195.2,1195.0,15.32814856]
[1672539467550,3.76124082,1195.2,1195.0,15.32814856]
[1672539467762,3.76124082,1195.2,1195.0,17.21035281]
[1672539469546,3.76124082,1195.2,1195.0,15.32814856]
[1672539469547,4.0,1195.1,1195.0,15.32814856]
[1672539469858,4.0,1195.1,1195.0,4.74838856]
[1672539473326,7.76124082,1195.1,1195.0,15.58299236]
[1672539474377,7.76124082,1195.1,1195.0,4.74838856]
[1672539474593,7.76124082,1195.1,1195.0,15.1906473]
[1672539474802,4.0,1195.1,1195.0,15.1906473]
[1672539475429,4.0,1195.1,1195.0,4.74838856]
[1672539475638,4.0,1195.1,1195.0,15.56086126]
[1672539475852,7.76124082,1195.1,1195.0,15.56086126]
[1672539476698,4.0,1195.1,1195.0,15.56086126]
[1672539478482,3.76124082,1195.1,1195.0,15.56086126]
[1672539478685,4.0,1195.1,1195.0,17.44306551]
[1672539479106,4.0,1195.1,1195.0,15.56086126]
[1672539479317,7.76124082,1195.1,1195.0,15.56086126]
[1672539480052,7.76124082,1195.1,1195.0,4.74838856]
[1672539482161,12.13485571,1195.1,1194.9,5.25412376]
[1672539484990,7.76124082,1195.1,1194.9,5.25412376]
[1672539485418,12.13485571,1195.1,1194.9,5.25412376]
[1672539485733,7.76124082,1195.1,1194.9,5.25412376]
[1672539486256,12.13485571,1195.1,1194.9,5.25412376]
[1672539487629,7.76124082,1195.1,1194.9,5.25412376]
[1672539488259,12.13485571,1195.1,1194.9,5.25412376]
[1672539489619,12.13485571,1195.1,1194.9,4.0]
[1672539496762,3.76124082,1195.0,1194.9,4.0]
[1672539497079,12.13485571,1195.1,1194.9,4.0]
[1672539500025,12.13485571,1195.1,1194.9,5.25412376]
[1672539500863,7.76124082,1195.1,1194.9,5.25412376]
[1672539501706,12.13485571,1195.1,1194.9,5.25412376]
[1672539502544,7.76124082,1195.1,1194.9,5.25412376]
[1672539504230,7.76124082,1195.1,1194.9,7.13632801]
[1672539504547,7.76124082,1195.1,1194.9,5.25412376]
[1672539505382,7.76124082,1195.1,1194.9,7.13632801]
[1672539507492,7.76124082,1195.1,1194.9,5.25412376]
[1672539508954,12.13485571,1195.1,1194.9,5.25412376]
[1672539510328,7.76124082,1195.1,1194.9,7.13632801]
[1672539510641,7.76124082,1195.1,1195.0,1.25412376]
[1672539512010,7.76124082,1195.1,1194.9,7.13632801]
[1672539513689,12.13485571,1195.1,1194.9,7.13632801]
[1672539513893,7.76124082,1195.1,1195.0,1.25412376]
[1672539525573,7.76124082,1195.1,1194.9,15.50132801]
[1672539525773,7.76124082,1195.1,1195.0,1.25412376]
[1672539528198,7.76124082,1195.1,1194.9,15.50132801]
[1672539532091,7.76124082,1195.1,1195.0,1.25412376]
[1672539546288,8.37361489,1195.1,1194.9,15.49724718]
[1672539546598,3.76529937,1195.0,1194.9,15.49724718]
[1672539547659,12.13891426,1195.1,1194.9,14.24720425]
[1672539547861,7.76529937,1195.1,1194.9,14.24720425]
[1672539548086,12.13891426,1195.1,1194.9,14.24720425]
[1672539555223,7.76529937,1195.1,1194.9,16.75682322]
[1672539555439,7.75751892,1195.1,1194.9,14.24720425]
[1672539555751,12.13113381,1195.1,1194.9,14.24720425]
[1672539556488,7.75751892,1195.1,1194.9,14.24720425]
[1672539557433,12.13113381,1195.1,1194.9,14.24720425]
[1672539558164,7.75751892,1195.1,1194.9,14.24720425]
[1672539558478,12.13113381,1195.1,1194.9,14.24720425]
[1672539561218,7.75751892,1195.1,1194.9,16.75682322]
[1672539563857,12.13113381,1195.1,1194.9,14.24720425]
[1672539570687,7.75751892,1195.1,1194.9,16.75682322]
[1672539570895,7.75751892,1195.1,1194.9,14.24720425]
[1672539571206,12.13113381,1195.1,1194.9,14.24720425]
[1672539572374,7.75751892,1195.1,1194.9,16.75682322]
[1672539576148,7.75751892,1195.1,1195.0,1.88220425]
[1672539576573,7.75751892,1195.1,1195.0,12.6535254]
[1672539577835,4.37361489,1195.2,1195.0,12.6535254]
[1672539577836,8.13891426,1195.2,1195.0,12.6535254]
[1672539578046,3.76529937,1195.2,1195.1,3.5]
[1672539578571,3.76529937,1195.2,1195.1,5.38220425]
[1672539578786,11.63891426,1195.3,1195.1,5.38220425]
[1672539579096,7.26529937,1195.3,1195.1,5.38220425]
[1672539579517,11.63891426,1195.3,1195.1,5.38220425]
[1672539579725,3.76529937,1195.2,1195.1,5.38220425]
[1672539580041,11.63891426,1195.3,1195.1,3.5]
[1672539580666,7.26529937,1195.3,1195.1,5.38220425]
[1672539582872,7.26529937,1195.3,1195.1,13.74720425]
[1672539583929,7.26529937,1195.3,1195.1,11.865]
[1672539584976,7.26529937,1195.3,1195.1,13.74720425]
[1672539585830,7.26529937,1195.3,1195.1,11.865]
[1672539589929,3.5,1195.3,1195.1,11.865]
[1672539590239,4.0,1195.3,1195.1,11.865]
[1672539591294,4.0,1195.3,1195.1,13.74720425]
[1672539591506,4.0,1195.3,1195.1,11.865]
[1672539595921,3.76529937,1195.4,1195.1,11.865]
[1672539596135,7.76529937,1195.4,1195.1,13.74720425]
[1672539596341,3.5,1195.3,1195.1,13.74720425]
[1672539599382,7.76529937,1195.4,1195.1,13.74720425]
[1672539599698,3.76529937,1195.5,1195.1,16.25682322]
[1672539600011,4.0,1195.4,1195.1,13.74720425]
[1672539600220,7.76529937,1195.5,1195.1,16.25682322]
[1672539600429,7.76529937,1195.5,1195.1,13.74720425]
[1672539600640,3.5,1195.4,1195.1,13.74720425]
[1672539605060,7.26529937,1195.4,1195.1,13.74720425]
[1672539605377,3.5,1195.4,1195.1,13.74720425]
[1672539605797,7.26529937,1195.4,1195.1,13.74720425]
[1672539607682,3.5,1195.4,1195.1,13.74720425]
[1672539607890,7.26529937,1195.4,1195.1,13.74720425]
[1672539614416,11.63891426,1195.4,1195.1,13.74720425]
[1672539615366,7.26529937,1195.4,1195.1,13.74720425]
[1672539615672,11.63891426,1195.4,1195.1,13.74720425]
[1672539616309,7.26529937,1195.4,1195.1,13.74720425]
[1672539616935,11.63891426,1195.4,1195.1,13.74720425]
[1672539617782,3.76529937,1195.3,1195.1,16.25682322]
[1672539618196,3.76529937,1195.3,1195.1,13.74720425]
[1672539618936,3.76529937,1195.3,1195.1,16.25682322]
[1672539620090,11.63891426,1195.4,1195.1,16.25682322]
[1672539620404,11.63891426,1195.4,1195.1,13.74720425]
[1672539620618,11.63891426,1195.4,1195.2,8.365]
[1672539620828,7.87361489,1195.4,1195.3,4.0]
[1672539621034,7.87361489,1195.4,1195.2,0.78072217]
[1672539621245,3.76411701,1195.3,1195.1,14.24720425]
[1672539636706,3.76411701,1195.3,1195.1,16.75682322]
[1672539640689,3.76411701,1195.3,1195.2,1.88220425]
[1672539641434,3.76411701,1195.3,1195.1,16.75682322]
[1672539645213,3.76411701,1195.3,1195.2,1.88220425]
[1672539648679,11.6377319,1195.4,1195.2,1.88220425]
[1672539648996,11.6377319,1195.4,1195.3,3.5]
[1672539649306,11.63861358,1195.4,1195.3,3.5]
[1672539650354,7.87361489,1195.4,1195.3,3.5]
[1672539650674,11.63861332,1195.4,1195.3,3.5]
[1672539651199,8.13861332,1195.4,1195.3,3.5]
[1672539651415,3.76499843,1195.4,1195.3,3.5]
[1672539652042,8.13861332,1195.4,1195.3,3.5]
[1672539653300,3.76499843,1195.4,1195.3,3.5]
[1672539653513,3.76499843,1195.4,1195.3,3.49313847]
[1672539660658,3.76499843,1195.4,1195.3,3.99313847]
[1672539661704,3.76499843,1195.4,1195.3,12.35813847]
[1672539661916,4.37361489,1195.7,1195.3,16.9788876]
[1672539662229,4.0,1195.6,1195.4,10.24514579]
[1672539662856,4.0,1195.6,1195.4,21.18681179]
[1672539663173,4.37361489,1195.7,1195.5,4.0]
[1672539663385,8.37361489,1195.7,1195.5,4.0]
[1672539663593,3.5,1195.6,1195.5,4.0]
[1672539668534,8.37361489,1195.7,1195.5,4.0]
[1672539668749,3.5,1195.6,1195.5,4.0]
[1672539669590,3.5,1195.6,1195.5,12.365]
[1672539670542,3.5,1195.6,1195.5,12.366]
[1672539670745,3.5,1195.6,1195.5,4.0]
[1672539671163,3.5,1195.6,1195.4,10.941666]
[1672539671375,3.5,1195.6,1195.3,1.25297363]
[1672539671585,3.5,1195.6,1195.4,14.7733989]
[1672539671902,3.5,1195.6,1195.5,3.5]
[1672539674537,4.0,1195.7,1195.5,3.5]
[1672539676001,8.37361489,1195.7,1195.5,3.5]
[1672539676843,3.75636347,1195.6,1195.5,3.5]
[1672539680204,3.75636347,1195.6,1195.4,19.22957687]
[1672539680420,3.75636347,1195.6,1195.3,1.25297363]
[1672539680421,3.5,1195.5,1195.2,12.19463963]
[1672539680632,3.5,1195.5,1195.3,4.0]
[1672539680633,11.62997836,1195.5,1195.3,4.0]
[1672539680948,7.25636347,1195.5,1195.3,4.0]
[1672539681160,11.62997836,1195.5,1195.3,4.0]
[1672539682837,3.75636347,1195.4,1195.3,4.0]
[1672539683254,11.62997836,1195.5,1195.3,4.0]
[1672539686623,7.25636347,1195.5,1195.3,4.0]
[1672539688623,11.62997836,1195.5,1195.3,4.0]
[1672539689146,7.25636347,1195.5,1195.3,4.0]
[1672539692073,7.25636347,1195.5,1195.3,5.25297363]
[1672539692504,7.25636347,1195.5,1195.3,4.0]
[1672539696178,11.62997836,1195.5,1195.3,4.0]
[1672539696598,11.62997836,1195.5,1195.2,12.19463963]
[1672539696810,8.12997836,1195.4,1195.2,10.941666]
[1672539697224,7.75636347,1195.3,1195.1,9.61897363]
[1672539697441,7.75636347,1195.3,1195.2,4.0]
[1672539698280,4.0,1195.3,1195.2,4.0]
[1672539698497,7.75636347,1195.3,1195.2,4.0]
[1672539699542,4.0,1195.3,1195.2,4.0]
[1672539718663,4.0,1195.3,1195.2,5.25297363]
[1672539719187,4.0,1195.3,1195.2,4.0]
[1672539719398,7.75636347,1195.3,1195.2,4.0]
[1672539726448,7.75636347,1195.3,1195.1,4.75297363]
[1672539726661,3.75636347,1195.2,1195.1,4.0]
[1672539727082,7.75636347,1195.3,1195.1,5.25297363]
[1672539727395,12.12997836,1195.3,1195.1,5.25297363]
[1672539728022,7.75636347,1195.3,1195.1,5.25297363]
[1672539732650,7.75636347,1195.3,1195.1,4.0]
[1672539732856,3.75636347,1195.2,1195.1,4.0]
[1672539733075,3.75636347,1195.2,1195.1,5.25297363]
[1672539735395,12.12997836,1195.3,1195.1,5.25297363]
[1672539736030,3.75636347,1195.2,1195.1,5.25297363]
[1672539738131,3.75636347,1195.2,1195.1,5.25073496]
[1672539739391,12.12997836,1195.3,1195.1,5.25073496]
[1672539740543,7.75636347,1195.3,1195.1,7.13088075]
[1672539742022,7.75636347,1195.3,1195.2,1.25297363]
[1672539742981,7.75636347,1195.3,1195.1,7.13088075]
[1672539743283,7.75636347,1195.3,1195.2,1.25297363]
[1672539744755,3.75636347,1195.3,1195.2,1.25297363]
[1672539745066,3.75636347,1195.4,1195.2,12.67122365]
[1672539745276,3.75636347,1195.4,1195.3,1.25355534]
[1672539745485,3.75636347,1195.4,1195.3,3.5]
[1672539745692,3.75636347,1195.4,1195.3,4.75355534]